bitfinex/quotes_ETHUSD_20250415
["timestamp","ask_amount","ask_price","bid_price","bid_amount"]
[1744699389477,6.09871,1639.7,1639.5,4.0]
[1744699389788,0.7879,1639.6,1639.4,3.0]
[1744699390488,6.88714,1639.6,1639.2,6.10051]
[1744699390662,0.7577,1639.3,1639.0,6.10124]
[1744699391156,0.7577,1639.3,1639.1,6.10087]
[1744699391359,0.7577,1639.4,1639.1,6.10061]
[1744699393092,0.7577,1639.4,1639.0,6.10126]
[1744699393093,8.153195,1639.4,1639.0,6.10126]
[1744699395301,14.253305,1639.4,1639.0,6.10126]
[1744699396704,8.153195,1639.4,1639.0,6.10126]
[1744699396998,2.053385,1639.4,1639.1,6.10067]
[1744699398901,6.92462,1639.2,1638.8,6.10202]
[1744699399198,6.793492,1639.1,1638.7,6.10218]
[1744699399504,0.8239,1638.9,1638.7,6.10202]
[1744699399679,0.8239,1639.0,1638.8,6.10202]
[1744699401603,5.227,1639.2,1638.8,0.7981]
[1744699401604,6.0282,1639.2,1638.8,0.7981]
[1744699401817,12.12924,1639.4,1639.1,6.10076]
[1744699402713,5.228,1639.4,1639.3,6.10016]
[1744699404758,5.9966,1639.7,1639.5,6.09938]
[1744699405066,5.9966,1639.7,1639.4,6.09965]
[1744699405963,5.9966,1639.7,1639.3,6.10006]
[1744699405964,12.09554,1639.7,1639.3,6.10006]
[1744699406165,6.09908,1639.6,1639.3,6.10006]
[1744699410172,12.09554,1639.7,1639.3,12.20005]
[1744699410466,12.09552,1639.7,1639.3,6.09999]
[1744699410639,6.09905,1639.6,1639.3,6.09999]
[1744699411141,12.09552,1639.7,1639.1,6.8989]
[1744699411142,0.7572,1639.4,1639.1,6.8989]
[1744699411341,0.7572,1639.4,1639.1,6.1008]
[1744699411659,0.7572,1639.4,1639.1,12.20153]
[1744699412467,6.85718,1639.4,1639.1,6.10073]
[1744699412670,0.7572,1639.4,1639.1,6.10073]
[1744699412845,0.7572,1639.4,1639.2,6.10037]
[1744699413050,0.7572,1639.4,1639.2,12.20075]
[1744699413249,0.7572,1639.4,1639.2,6.10037]
[1744699421799,0.7572,1639.4,1639.1,6.10085]
[1744699422296,0.7572,1639.4,1639.1,12.20161]
[1744699422797,0.7572,1639.4,1639.2,0.6]
[1744699424095,6.10029,1639.3,1639.0,9.1012]
[1744699425006,12.95745,1639.4,1639.0,15.2023]
[1744699425595,12.95745,1639.4,1639.0,9.1011]
[1744699426296,6.85729,1639.4,1639.0,15.20227]
[1744699426498,0.7572,1639.4,1639.1,12.20136]
[1744699428504,0.7572,1639.4,1639.1,12.20132]
[1744699428700,6.85716,1639.4,1639.0,12.20244]
[1744699428909,18.18422,1639.4,1639.0,12.20244]
[1744699429081,18.869936,1639.4,1639.0,12.20244]
[1744699430192,12.769876,1639.4,1639.1,6.10089]
[1744699434654,5.227,1639.4,1639.2,12.20079]
[1744699436436,5.227,1639.4,1639.2,6.10026]
[1744699436735,11.32679,1639.4,1639.1,6.89892]
[1744699437136,11.32679,1639.4,1639.1,6.10082]
[1744699438405,0.7565,1639.3,1639.1,6.10072]
[1744699438741,5.227,1639.4,1639.1,12.20146]
[1744699439035,5.227,1639.4,1639.1,6.10072]
[1744699440342,11.32679,1639.4,1639.1,6.10072]
[1744699440500,19.245006,1639.4,1639.1,6.10072]
[1744699440708,6.85281,1639.3,1638.9,12.2032]
[1744699441038,12.95333,1639.3,1638.9,6.1016]
[1744699441237,14.9531886,1639.3,1638.9,6.1016]
[1744699443203,2.7523586,1639.3,1639.0,6.101]
[1744699443412,0.7525,1639.3,1639.1,6.10084]
[1744699444191,12.09563,1639.4,1639.1,6.10084]
[1744699445341,5.227,1639.4,1639.2,6.10053]
[1744699445543,0.7722,1639.6,1639.3,12.20032]
[1744699445839,6.68629,1639.6,1639.3,12.20032]
[1744699446382,6.68629,1639.6,1639.3,6.10016]
[1744699446546,6.68629,1639.6,1639.3,6.10005]
[1744699447045,12.78534,1639.6,1639.3,6.10005]
[1744699448379,18.88461,1639.6,1639.2,9.0767989]
[1744699448574,18.88461,1639.6,1639.2,15.1772089]
[1744699449450,12.78534,1639.6,1639.3,6.10012]
[1744699449653,0.8002,1639.8,1639.4,0.7616]
[1744699449858,5.227,1639.9,1639.7,6.09867]
[1744699450157,53.66681,1640.2,1639.7,6.85613]
[1744699450158,53.5804,1640.2,1639.7,6.85613]
[1744699450360,6.09763,1640.0,1639.7,6.85613]
[1744699450662,0.7834,1639.9,1639.6,9.0751489]
[1744699451153,0.7834,1639.9,1639.6,2.9762689]
[1744699451353,0.7834,1639.9,1639.7,6.09847]
[1744699451991,0.7834,1639.9,1639.6,9.0752389]
[1744699452164,0.7834,1639.9,1639.6,6.09897]
[1744699452359,6.09848,1639.8,1639.4,12.0759989]
[1744699452564,6.09848,1639.8,1639.4,18.1756389]
[1744699453205,0.8222,1639.6,1639.4,3.0]
[1744699453866,0.8222,1639.6,1639.3,6.10011]
[1744699454071,0.8222,1639.6,1639.3,12.20007]
[1744699454377,0.8222,1639.6,1639.2,3.7743689]
[1744699454378,12.09941,1639.8,1639.5,6.09929]
[1744699454693,13.919148,1639.8,1639.4,6.09956]
[1744699454865,6.0988,1639.7,1639.4,6.09956]
[1744699455261,6.8788,1639.6,1639.3,6.10009]
[1744699456191,0.7797,1639.6,1639.3,12.20009]
[1744699456492,0.7797,1639.6,1639.4,6.09976]
[1744699456668,0.7813,1639.7,1639.4,6.09976]
[1744699456861,6.88015,1639.7,1639.2,9.8746589]
[1744699457063,6.88015,1639.7,1639.3,6.09993]
[1744699458292,6.88015,1639.7,1639.4,6.09973]
[1744699458499,8.700599,1639.7,1639.4,6.09973]
[1744699458698,14.799469,1639.7,1639.3,6.09993]
[1744699459207,6.09907,1639.6,1639.3,6.09993]
[1744699459812,6.89697,1639.6,1639.3,6.09993]
[1744699459984,6.89697,1639.6,1639.3,12.19994]
[1744699460178,6.89697,1639.6,1639.3,6.09993]
[1744699460375,8.3785969,1639.6,1639.3,6.09993]
[1744699461176,6.09943,1639.5,1639.2,9.0767889]
[1744699461382,6.09943,1639.5,1639.2,6.10052]
[1744699461616,0.8331,1639.4,1639.1,9.10088]
[1744699461791,6.933,1639.4,1639.1,15.20165]
[1744699461984,6.933,1639.4,1639.1,9.10077]
[1744699462313,13.03301,1639.4,1639.1,6.10077]
[1744699462513,6.933,1639.4,1639.1,6.10077]
[1744699463009,13.03301,1639.4,1639.1,6.10077]
[1744699463404,6.933,1639.4,1639.1,6.10077]
[1744699463602,6.933,1639.4,1639.1,12.20154]
[1744699463806,6.933,1639.4,1639.1,12.26254242]
[1744699464007,6.933,1639.4,1639.1,6.10077]
[1744699465524,0.8331,1639.4,1639.1,12.26249244]
[1744699466218,6.89237,1639.5,1639.2,6.10053]
[1744699467732,12.99199,1639.5,1639.2,6.10053]
[1744699467947,6.8917,1639.7,1639.4,6.09979]
[1744699468156,12.11658,1639.7,1639.4,6.09965]
[1744699470095,18.21546,1639.7,1639.4,6.09965]
[1744699470492,7.839446,1639.7,1639.2,6.1004]
[1744699470714,0.767,1639.4,1639.1,6.10085]
[1744699472418,0.767,1639.4,1639.1,12.26260211]
[1744699472737,0.767,1639.4,1639.1,6.10075]
[1744699473723,0.767,1639.4,1639.1,6.16175212]
[1744699473894,0.767,1639.4,1639.1,6.10075]
[1744699474291,12.96709,1639.4,1639.0,9.0774689]
[1744699475233,6.10018,1639.3,1639.0,9.0774689]
[1744699475528,6.10018,1639.3,1639.0,6.1012]
[1744699475720,6.91552,1639.2,1638.8,6.86778]
[1744699476020,6.91622,1639.0,1638.7,6.10232]
[1744699476225,13.01774,1639.0,1638.6,9.8770689]
[1744699476428,6.91622,1639.0,1638.7,6.10227]
[1744699478404,6.91622,1639.0,1638.8,0.6]
[1744699478610,6.10165,1638.9,1638.8,0.6]
[1744699478803,6.10165,1638.9,1638.6,6.10261]
[1744699479932,0.8196,1638.8,1638.5,9.10297]
[1744699480619,0.8196,1638.8,1638.5,15.20592]
[1744699480815,0.8196,1638.8,1638.6,6.1027]
[1744699481834,0.8196,1638.8,1638.5,15.20592]
[1744699482935,0.8196,1638.8,1638.5,9.10295]
[1744699483300,6.92163,1638.8,1638.5,9.10295]
[1744699484112,0.8196,1638.8,1638.6,6.10276]
[1744699484935,0.8196,1638.8,1638.6,6.05276]
[1744699485144,0.8196,1638.8,1638.5,15.20594]
[1744699485336,2.64451,1638.8,1638.5,12.20594]
[1744699487598,5.226,1638.9,1638.6,6.1026]
[1744699487798,0.7751,1639.1,1638.8,6.10185]
[1744699487996,0.7751,1639.1,1638.9,6.10153]
[1744699488824,0.7751,1639.1,1639.0,6.10128]
[1744699489033,0.7751,1639.3,1639.0,6.10116]
[1744699489233,6.87978,1639.5,1639.2,6.10053]
[1744699489440,0.7803,1639.5,1639.3,6.10009]
[1744699489648,0.7803,1639.5,1639.4,6.09979]
[1744699490033,0.7803,1639.5,1639.3,6.10009]
[1744699490233,0.7803,1639.5,1639.3,12.20009]
[1744699490429,0.7803,1639.5,1639.3,6.1]
[1744699492255,5.226,1639.6,1639.4,6.09966]
[1744699492421,5.226,1639.6,1639.4,6.09964]
[1744699492616,0.7679,1639.7,1639.5,6.09942]
[1744699493111,1.36719,1639.7,1639.3,6.1001]
[1744699493313,6.09905,1639.6,1639.3,6.1001]
[1744699494338,6.09905,1639.6,1639.2,6.1005]
[1744699494339,12.19831,1639.6,1639.2,12.20086]
[1744699494650,0.8148,1639.5,1639.2,6.10036]
[1744699495149,6.91428,1639.5,1639.2,6.10036]
[1744699495347,8.215613,1639.5,1639.2,6.10036]
[1744699496557,2.116133,1639.5,1639.2,6.10036]
[1744699496869,0.8148,1639.5,1639.3,6.10003]
[1744699498229,0.8148,1639.5,1639.3,12.20007]
[1744699498433,0.8148,1639.5,1639.3,6.10003]
[1744699498634,0.8148,1639.5,1639.3,12.20007]
[1744699499140,0.8148,1639.5,1639.3,6.10003]
[1744699500766,7.605729,1639.5,1639.1,12.2016]
[1744699500948,7.605729,1639.5,1639.1,12.20147]
[1744699501270,13.705329,1639.5,1639.1,12.20147]
[1744699501774,7.605729,1639.5,1639.1,12.20147]
[1744699502066,7.605729,1639.5,1639.1,12.20144]
[1744699503275,1.506189,1639.5,1639.2,6.10045]
[1744699503461,1.506189,1639.5,1639.3,6.10016]
[1744699506169,1.506189,1639.5,1639.3,6.10001]
[1744699506646,1.506189,1639.5,1639.3,12.20002]
[1744699506847,1.506189,1639.5,1639.3,6.10001]
[1744699508000,1.506189,1639.5,1639.3,12.2]
[1744699508145,1.506189,1639.5,1639.3,6.09999]
[1744699508349,0.691389,1639.5,1639.3,12.20001]
[1744699508650,0.691389,1639.5,1639.3,12.98771]
[1744699509319,0.7568,1639.7,1639.4,6.09979]
[1744699509608,5.224,1639.8,1639.6,12.19782]
[1744699509960,5.224,1639.8,1639.5,6.09929]
[1744699510198,11.32246,1639.8,1639.5,12.19855]
[1744699510394,6.431884,1639.8,1639.5,12.19855]
[1744699510799,12.530194,1639.8,1639.5,6.09926]
[1744699510988,18.628704,1639.8,1639.5,6.09926]
[1744699511189,0.7985,1639.7,1639.5,6.09926]
[1744699511500,2.7412204,1639.7,1639.5,6.09926]
[1744699513087,5.224,1639.8,1639.6,6.09878]
[1744699513306,5.224,1639.8,1639.6,12.19765]
[1744699513872,5.224,1639.8,1639.7,6.09867]
[1744699514377,53.602,1640.1,1639.9,6.09789]
[1744699514604,5.3602,1640.0,1639.9,6.09789]
[1744699514808,5.223,1640.2,1639.9,2.9762689]
[1744699515013,5.223,1640.2,1640.0,6.09738]
[1744699515259,5.223,1640.2,1640.0,12.19494]
[1744699515388,5.223,1640.2,1640.0,6.09738]
[1744699519074,5.223,1640.2,1640.1,6.09718]
[1744699520004,5.223,1640.2,1640.0,6.09738]
[1744699520191,5.223,1640.2,1640.0,12.19478]
[1744699520387,6.88392,1640.1,1639.7,6.09856]
[1744699520635,5.7453,1640.2,1639.5,2.9762689]
[1744699520636,0.7865,1639.8,1639.5,6.09933]
[1744699520931,0.7865,1639.8,1639.5,12.19866]
[1744699521226,0.7865,1639.8,1639.6,6.09901]
[1744699523253,6.88504,1639.8,1639.4,12.19934]
[1744699523410,12.98357,1639.8,1639.4,12.19928]
[1744699523616,6.09891,1639.7,1639.3,9.0764189]
[1744699524261,1.52782164,1639.8,1639.4,6.09965]
[1744699524459,0.7865,1639.8,1639.5,6.09917]
[1744699524656,0.7865,1639.8,1639.6,6.09882]
[1744699526611,0.7865,1639.8,1639.5,6.8975]
[1744699527349,0.7865,1639.8,1639.5,6.89734]
[1744699527748,0.7865,1639.8,1639.5,12.99663]
[1744699530051,0.7865,1639.8,1639.6,6.09896]
[1744699530266,0.7865,1639.8,1639.6,12.19777]
[1744699530624,6.88782,1640.0,1639.7,6.09852]
[1744699531157,5.223,1640.2,1639.9,6.09768]
[1744699531357,5.223,1640.2,1639.8,0.81698005]
[1744699531358,5.223,1640.2,1640.0,6.09742]
[1744699531525,5.223,1640.2,1640.1,6.09718]
[1744699531724,0.7914,1640.3,1640.1,6.09718]
[1744699531957,6.88805,1640.3,1639.9,6.09779]
[1744699532121,12.98481,1640.3,1639.9,6.09779]
[1744699532322,6.88805,1640.3,1639.9,12.1956]
[1744699533457,12.98471,1640.3,1639.9,12.1956]
[1744699534655,0.7914,1640.3,1640.0,12.25591059]
[1744699534888,0.7914,1640.3,1640.0,12.19494]
[1744699536058,0.7914,1640.3,1640.0,6.09741]
[1744699536363,6.88792,1640.3,1639.9,6.09792]
[1744699536525,6.88792,1640.3,1639.9,12.19573]
[1744699536861,6.88792,1640.3,1640.0,6.0975]
[1744699537527,0.7681,1640.1,1639.7,9.09854]
[1744699537769,18.1831,1640.1,1639.7,9.09854]
[1744699539160,6.09768,1640.0,1639.6,6.09899]
[1744699539666,6.09795,1639.9,1639.6,6.09899]
[1744699540033,6.09768,1640.0,1639.7,6.09867]
[1744699540458,0.7622,1639.9,1639.6,6.09893]
[1744699540654,6.86015,1639.9,1639.6,6.09893]
[1744699540834,6.86015,1639.9,1639.6,12.1978]
[1744699540835,0.7622,1639.9,1639.6,12.1978]
[1744699541440,0.7622,1639.9,1639.5,6.7743689]
[1744699541441,6.86033,1639.9,1639.5,15.99668]
[1744699541654,0.7622,1639.9,1639.6,6.0988]
[1744699541852,0.7622,1639.9,1639.7,6.09856]
[1744699542032,11.31726,1640.1,1639.7,12.19709]
[1744699542033,18.16998,1640.1,1639.7,12.19709]
[1744699542235,19.986978,1640.1,1639.7,12.19709]
[1744699542544,13.889658,1640.1,1639.7,12.19709]
[1744699542963,19.987098,1640.1,1639.7,6.09853]
[1744699543144,13.889658,1640.1,1639.7,6.09853]
[1744699543871,6.09762,1640.0,1639.7,6.09853]
[1744699544079,6.098,1639.9,1639.6,6.09901]
[1744699544538,6.09762,1640.0,1639.6,6.15986147]
[1744699544739,12.19542,1640.0,1639.6,6.09888]
[1744699545151,6.09762,1640.0,1639.6,12.1978]
[1744699545470,6.09762,1640.0,1639.6,6.09888]
[1744699545674,6.09796,1639.9,1639.6,6.09888]
[1744699546746,6.09796,1639.9,1639.6,12.19776]
[1744699547147,6.09762,1640.0,1639.6,12.19776]
[1744699548479,12.19537,1640.0,1639.6,12.19776]
[1744699549879,8.0963968,1640.0,1639.7,6.09866]
[1744699551883,1.9987768,1640.0,1639.7,12.19718]
[1744699552081,18.16997,1640.1,1639.7,12.19718]
[1744699552750,6.09761,1640.0,1639.7,6.09852]
[1744699554268,12.07264,1640.1,1639.7,12.19705]
[1744699554471,5.22,1640.1,1640.0,6.09756]
[1744699554681,5.22,1640.1,1639.9,12.19549]
[1744699554898,5.22,1640.1,1639.9,6.09771]
[1744699555098,18.18796,1640.3,1639.9,12.19551]
[1744699555261,20.006756,1640.3,1639.9,12.19551]
[1744699555465,20.006756,1640.3,1639.9,6.09771]
[1744699556403,6.09712,1640.2,1639.8,6.89632]
[1744699556700,20.006776,1640.3,1639.9,6.09775]
[1744699556903,12.09131,1640.3,1639.9,6.09775]
[1744699557569,6.09683,1640.2,1639.9,6.09775]
[1744699560603,6.09683,1640.2,1639.8,12.99458]
[1744699560800,6.09721,1640.1,1639.8,6.89629]
[1744699560969,12.19393,1640.2,1639.8,6.89624]
[1744699561169,6.09741,1640.1,1639.8,6.89623]
[1744699561370,6.09811,1639.9,1639.6,0.7768]
[1744699561781,6.09811,1639.9,1639.6,6.87584]
[1744699562191,12.19626,1639.9,1639.6,6.87584]
[1744699562376,6.09811,1639.9,1639.6,0.7768]
[1744699562683,6.09811,1639.9,1639.6,6.87581]
[1744699563175,6.09811,1639.9,1639.6,12.97469]
[1744699563893,12.0905,1640.0,1639.6,6.87568]
[1744699564074,19.39738,1640.0,1639.6,6.87568]
[1744699564271,13.29955,1640.0,1639.6,12.97459]
[1744699564601,5.219,1640.0,1639.8,6.09802]
[1744699565010,5.219,1640.0,1639.9,6.09793]
[1744699565303,12.10401,1640.0,1639.7,6.09861]
[1744699566091,5.219,1640.0,1639.8,6.09827]
[1744699566508,5.219,1640.0,1639.7,6.0985]
[1744699566825,5.219,1640.0,1639.8,6.09823]
[1744699567492,5.219,1640.0,1639.7,6.0985]
[1744699567822,11.31656,1640.0,1639.7,6.0985]
[1744699567986,14.744978,1640.0,1639.6,6.88079]
[1744699568379,8.647238,1640.0,1639.6,12.97966]
[1744699568582,6.90586,1640.0,1639.6,12.97966]
[1744699568882,6.90586,1640.0,1639.7,6.09864]
[1744699569144,0.8083,1640.0,1639.7,6.09864]
[1744699569290,0.8083,1640.0,1639.7,12.19717]
[1744699570626,6.91443,1640.1,1639.8,6.09823]
[1744699571122,6.91446,1640.1,1639.8,6.09818]
[1744699571319,12.08227,1640.2,1639.9,6.09791]
[1744699571623,13.90015,1640.2,1639.9,6.09791]
[1744699572861,19.9972,1640.2,1639.8,6.89628]
[1744699573012,6.09723,1640.1,1639.8,6.89628]
[1744699573957,6.09723,1640.1,1639.8,6.09818]
[1744699574253,12.19461,1640.1,1639.7,12.19726]
[1744699574413,12.19463,1640.1,1639.7,12.19726]
[1744699574613,14.194421,1640.1,1639.7,12.19726]
[1744699575479,8.097021,1640.1,1639.7,12.19726]
[1744699575759,6.098,1639.9,1639.7,3.0]
[1744699576655,6.09862,1639.8,1639.4,6.09964]
[1744699576814,12.96989,1639.7,1639.3,6.8982]
[1744699577414,14.788779,1639.7,1639.3,6.8982]
[1744699577619,8.689899,1639.7,1639.3,12.9982]
[1744699578468,8.689899,1639.7,1639.4,6.09975]
[1744699578613,0.7722,1639.7,1639.4,12.19935]
[1744699578813,12.11575,1639.8,1639.5,6.09937]
[1744699580465,6.09881,1639.7,1639.4,6.0996]
[1744699583077,0.8141,1639.6,1639.1,3.7877]
[1744699583279,0.8141,1639.6,1639.0,6.10117]
[1744699583280,0.8141,1639.3,1638.9,0.7877]
[1744699583429,0.8141,1639.3,1639.0,4.0]
[1744699583430,6.10067,1639.2,1639.0,4.0]
[1744699583636,6.1009,1639.1,1639.0,4.0]
[1744699584059,6.1013,1639.0,1638.6,6.8548]
[1744699584296,6.71139,1639.0,1638.6,6.1027]
[1744699584471,0.803,1639.1,1638.8,6.10173]
[1744699585352,6.90392,1639.1,1638.8,6.10173]
[1744699585545,0.803,1639.1,1638.8,12.20357]
[1744699585765,0.803,1639.1,1638.8,6.10173]
[1744699586030,5.219,1639.4,1639.0,0.7981]
[1744699586239,5.219,1639.4,1639.2,6.10053]
[1744699586556,5.219,1639.4,1639.2,6.10036]
[1744699587160,48.3507,1639.7,1639.3,9.8745289]
[1744699587363,53.5697,1639.7,1639.4,6.09954]
[1744699588675,53.5697,1639.7,1639.5,6.09939]
[1744699588882,64.65373251,1639.7,1639.4,6.09954]
[1744699589048,64.65373251,1639.7,1639.3,9.8744689]
[1744699589049,6.09907,1639.6,1639.3,9.8744689]
[1744699589254,65.76728,1639.7,1639.3,9.8744689]
[1744699589453,59.66838,1639.7,1639.3,15.9744489]
[1744699589784,65.76737,1639.7,1639.3,9.0762489]
[1744699589985,6.0993,1639.6,1639.2,6.10047]
[1744699590142,6.09964,1639.5,1639.1,9.8402289]
[1744699590347,12.19928,1639.5,1639.1,9.8402289]
[1744699590751,6.09964,1639.5,1639.1,15.9409289]
[1744699591059,6.86678,1639.4,1639.0,6.10122]
[1744699591258,12.96689,1639.4,1639.0,6.10122]
[1744699591462,12.20064,1639.3,1638.9,9.8365489]
[1744699591660,11.32016,1639.3,1638.9,6.10158]
[1744699592489,5.22,1639.3,1639.0,6.10104]
[1744699593667,5.22,1639.3,1639.1,6.1009]
[1744699594155,5.22,1639.3,1639.0,6.10104]
[1744699594355,6.10065,1639.2,1638.9,6.1016]
[1744699594550,11.3205,1639.3,1638.9,6.1016]
[1744699595249,5.22,1639.3,1638.9,6.10146]
[1744699595544,5.22,1639.3,1639.0,6.10113]
[1744699595749,6.428662,1639.3,1639.0,6.10113]
[1744699596483,6.428662,1639.3,1639.0,12.20225]
[1744699596796,6.428662,1639.3,1639.0,12.20228]
[1744699597974,6.428662,1639.3,1639.0,6.10112]
[1744699598295,12.528832,1639.3,1639.0,6.10112]
[1744699599314,6.428662,1639.3,1639.0,6.10112]
[1744699599695,6.428662,1639.3,1639.0,12.20222]
[1744699599896,6.428662,1639.3,1639.0,6.1011]
[1744699600891,5.22,1639.3,1639.0,6.8992]
[1744699601094,5.22,1639.3,1639.1,6.10076]
[1744699601391,5.22,1639.3,1639.1,12.20155]
[1744699602197,5.22,1639.4,1639.2,6.10036]
[1744699602791,5.22,1639.4,1639.1,6.10087]
[1744699603098,5.22,1639.4,1639.1,12.20159]
[1744699603300,5.22,1639.4,1639.1,6.10072]
[1744699603500,5.22,1639.4,1639.1,12.20149]
[1744699603996,6.10055,1639.2,1638.9,9.1015]
[1744699604175,12.96828,1639.3,1638.9,9.1015]
[1744699604494,6.10063,1639.2,1638.9,9.1015]
[1744699604994,6.86779,1639.3,1638.9,15.20297]
[1744699605367,12.96816,1639.3,1638.9,6.10147]
[1744699605592,7.397376,1639.2,1638.9,6.10147]
[1744699605901,7.397376,1639.2,1638.9,12.203]
[1744699606196,1.296816,1639.2,1638.9,12.203]
[1744699606401,12.9682,1639.3,1639.1,6.10078]
[1744699606402,0.7673,1639.3,1639.1,6.10078]
[1744699607198,0.7673,1639.3,1639.0,6.10115]
[1744699607401,6.8675,1639.3,1639.0,6.10115]
[1744699608177,0.7673,1639.3,1639.0,6.10115]
[1744699608379,0.7673,1639.3,1639.0,12.20225]
[1744699609200,0.7673,1639.3,1639.0,6.1011]
[1744699609606,6.86747,1639.3,1639.0,6.1011]
[1744699609902,8.860393,1639.3,1639.0,6.1011]
[1744699610266,8.860393,1639.3,1639.0,12.20223]
[1744699610468,8.860393,1639.3,1639.0,12.20224]
[1744699610761,8.860393,1639.3,1639.0,6.1011]
[1744699613715,8.860393,1639.3,1639.0,12.20223]
[1744699614013,2.760223,1639.3,1639.0,12.20223]
[1744699615511,2.760223,1639.3,1639.0,12.20226]
[1744699615726,8.860403,1639.3,1638.9,6.10159]
[1744699616018,6.9867003,1639.2,1638.9,6.10159]
[1744699616216,6.86748,1639.3,1638.9,12.20313]
[1744699616884,6.86748,1639.3,1639.0,6.10122]
[1744699617287,6.86748,1639.3,1639.0,6.70122]
[1744699619217,5.22,1639.4,1639.1,6.88996]
[1744699619422,5.22,1639.4,1639.2,6.10042]
[1744699621607,5.22,1639.4,1639.1,6.88999]
[1744699621840,5.22,1639.4,1639.0,15.9767489]
[1744699621841,12.528186,1639.4,1639.0,15.9767489]
[1744699621994,12.528186,1639.4,1639.1,6.10088]
[1744699622193,6.428156,1639.4,1639.1,6.10076]
[1744699622919,12.527976,1639.4,1639.1,6.10076]
[1744699623321,6.1003,1639.3,1639.0,9.0775089]
[1744699623528,0.7962,1639.2,1639.0,6.10121]
[1744699625232,18.627936,1639.4,1639.0,12.20235]
[1744699625526,19.397876,1639.4,1639.0,12.20235]
[1744699626126,6.10018,1639.3,1639.0,6.10114]
[1744699628735,13.297896,1639.4,1639.0,12.20227]
[1744699628907,19.397866,1639.4,1639.0,12.20227]
[1744699629344,19.397866,1639.4,1639.0,6.10113]
[1744699630339,6.10017,1639.3,1639.0,6.10113]
[1744699632037,7.198056,1639.4,1638.8,9.8762589]
[1744699632348,6.10189,1638.9,1638.5,9.0792689]
[1744699632505,6.10239,1638.7,1638.6,4.0]
[1744699632714,6.10293,1638.6,1638.3,6.10376]
[1744699633033,6.10165,1638.9,1638.7,6.10219]
[1744699633034,5.22,1638.9,1638.7,6.10219]
[1744699633546,5.22,1638.9,1638.6,13.00354]
[1744699633848,5.22,1638.9,1638.6,13.00341]
[1744699634369,5.22,1638.9,1638.6,6.90069]
[1744699635015,5.22,1638.9,1638.6,13.00329]
[1744699635214,5.22,1638.9,1638.6,6.90069]
[1744699635419,6.88935,1638.8,1638.4,13.0049]
[1744699635846,6.88925,1638.8,1638.4,6.10334]
[1744699636041,6.791375,1638.7,1638.4,6.10334]
[1744699637355,6.10279,1638.6,1638.2,6.89529]
[1744699637655,6.10279,1638.6,1638.2,6.10389]
[1744699637656,12.97287,1638.6,1638.2,6.10389]
[1744699638337,17.42672,1638.5,1638.1,10.3815589]
[1744699638530,19.246102,1638.5,1638.1,9.6308589]
[1744699639255,13.142652,1638.5,1638.1,9.6308589]
[1744699639458,19.246002,1638.5,1638.1,9.6308589]
[1744699640124,13.142652,1638.5,1638.1,15.7353289]
[1744699640418,5.22,1638.5,1638.1,3.5262789]
[1744699640623,5.22,1638.5,1638.4,6.10351]
[1744699641033,5.22,1638.5,1638.3,6.90182]
[1744699641960,5.22,1638.5,1638.3,13.00555]
[1744699642160,5.22,1638.5,1638.3,12.20745]
[1744699644264,5.22,1638.5,1638.3,6.10372]
[1744699644859,5.22,1638.5,1638.3,12.20747]
[1744699645066,5.22,1638.5,1638.4,6.10351]
[1744699650270,5.22,1638.5,1638.3,12.20747]
[1744699651176,5.22,1638.5,1638.3,6.10372]
[1744699651471,18.02529,1638.5,1638.1,10.4180389]
[1744699651676,18.02529,1638.5,1638.1,9.6308389]
[1744699651972,0.7677,1638.4,1638.1,9.6308389]
[1744699652155,0.7677,1638.4,1638.1,15.7353289]
[1744699652747,0.7677,1638.4,1638.2,6.10419]
[1744699652943,5.81871,1638.5,1638.2,12.20829]
[1744699653133,5.81871,1638.5,1638.1,3.58731748]
[1744699653134,5.22,1638.5,1638.3,9.0799989]
[1744699653341,0.7994,1638.4,1638.2,6.10417]
[1744699655989,6.90296,1638.4,1638.1,6.6546]
[1744699656690,13.00668,1638.4,1638.1,0.55001]
[1744699656848,1.300668,1638.3,1638.1,0.55001]
[1744699657050,6.10426,1638.2,1638.1,0.55001]
[1744699657250,6.89476,1638.2,1638.1,0.55001]
[1744699658080,0.7905,1638.2,1638.1,0.55001]
[1744699658280,6.8742,1638.4,1638.1,0.55001]
[1744699658477,12.97793,1638.4,1638.1,0.55001]
[1744699658684,1.297793,1638.3,1638.1,0.55001]
[1744699659148,7.401693,1638.3,1638.1,0.55001]
[1744699659897,0.7889,1638.2,1638.1,0.55001]
[1744699660052,7.401693,1638.3,1638.1,0.55001]
[1744699660252,8.217493,1638.3,1638.1,0.55001]
[1744699660452,0.8217493,1638.2,1638.1,0.55001]
[1744699660895,2.113593,1638.3,1638.1,6.65463]
[1744699661282,2.113593,1638.3,1638.1,0.55001]
[1744699661597,8.217473,1638.3,1638.1,0.55001]
[1744699661912,6.91968,1638.3,1638.1,0.55001]
[1744699662199,13.02378,1638.3,1638.1,0.55001]
[1744699662662,6.91968,1638.3,1638.1,0.55001]
[1744699663287,13.02388,1638.3,1638.1,0.55001]
[1744699663590,1.302388,1638.2,1638.1,0.55001]
[1744699663796,13.02388,1638.3,1638.1,0.55001]
[1744699663797,6.91968,1638.3,1638.1,0.55001]